Cogmind - Beta 16 @@@ ROGUE MODE // 2025.10.25 @ 14:26:48 Player: Jack Result: Destroyed by MAIN.C with Heavy Quantum Rifle Performance ------------- Evolutions (9) 4500 Regions Visited (24) 4800 Robots Destroyed (39) 195 Value Destroyed (889) 889 Prototype IDs (39) 780 Alien Tech Used (2) 400 Bonus (16258) 16258 TOTAL SCORE: 27822 Bonus ------- Triggered Max Security 1000 Follower Combat Kills 202 Aligned with FarCom 300 Met Zhirov 300 Met Warlord at Base 500 MAIN.C Attacked Warlord 500 Met Warlord at Research 2000 Acquired SGEMP 2000 Delivered SGEMP 2000 Destroyed MAIN.C Guards 500 Met MAIN.C 5000 Met Warlord at Command 2000 Friendly Fire -44 Cogmind --------- Core Integrity 0/1600 Matter 277/300 Energy 100/100 System Corruption 43% Temperature Cool (9) Movement Core (300) Ox5 Location -1/Command Parts ------- > --- POWER (1) -------- (None) > --- PROPULSION (8) --- (None) > --- UTILITY (14) ----- Advanced Visual Processing Unit Experimental Optical Array Advanced Signal Interpreter Terrain Scan Processor Hacking Suite Hacking Suite Improved System Shield > --- WEAPON (2) ------- Enhanced Hardcell Cannon Power Maul > --- INVENTORY (5) ---- Heavy Missile Launcher Peak State ------------ > --- POWER ------------ Light Quantum Reactor > --- PROPULSION ------- Xenon Bombardment Thruster Xenon Bombardment Thruster Improved Cesium-ion Thruster Experimental Cesium-ion Thruster Impulse Thruster Field Propulsion Array Electron Diverter > --- UTILITY ---------- Advanced Visual Processing Unit Advanced Visual Processing Unit Experimental Optical Array Advanced Signal Interpreter Terrain Scan Processor Hacking Suite Hacking Suite Hacking Suite Hacking Suite Hacking Suite Improved System Shield Improved System Shield > --- WEAPON ----------- Greatsword > --- INVENTORY -------- Heavy Missile Launcher [Rating: 113] Favorites ----------- Power Improved Deuterium Engine Engine Improved Deuterium Engine Reactor Light Quantum Reactor Propulsion Xenon Bombardment Thruster Leg Myomer Leg Hover Unit Improved Antigrav System Flight Unit Xenon Bombardment Thruster Utility Hacking Suite Device Structural Scanner Processor Advanced Signal Interpreter Hackware Hacking Suite Weapon Longsword +1 Energy Gun EM Pulse Gun Ballistic Gun Light Assault Rifle Ballistic Cannon Linear Accelerator Launcher Heavy Missile Launcher Impact Weapon Power Maul Slashing Weapon Longsword +1 Piercing Weapon Kinetic Spear Special Melee Weapon Improved Datajack Build | -11 -10 -10 -10 -9 -8 -7 -7 -7 -6 -5 -5 -5 -5 -4 -4 -4 -4 -4 -3 -3 -3 -2 -1 -1 ------- Run | Yrd Mat Min Exi Min Mat Fac Was Fac Fac Fac Upp Upp War Pro Fac Upp Upp Zhi Pro Res Tes Res Acc Com Slots Evolved 18 | . . . . . 4 2 . . 2 2 . . . . 2 . . . . 2 . 2 2 . Power . | . . . . . . . . . . . . . . . . . . . . . . . . . Propulsion 6 | . . . . . 1 . . . . . . . . . 1 . . . . 2 . . 2 . Utility 12 | . . . . . 3 2 . . 2 2 . . . . 1 . . . . . . 2 . . Weapon . | . . . . . . . . . . . . . . . . . . . . . . . . . Parts Attached 68 | 2 . . . 2 3 11 1 10 2 2 . . . . 2 . 2 . 2 6 2 3 2 16 Power 5 | . . . . . . 2 . . . . . . . . . . . . 1 . 1 1 . . Engine 3 | . . . . . . 2 . . . . . . . . . . . . 1 . . . . . Core . | . . . . . . . . . . . . . . . . . . . . . . . . . Reactor 2 | . . . . . . . . . . . . . . . . . . . . . 1 1 . . Propulsion 15 | . . . . . 1 3 1 . . . . . . . 1 . . . . 1 . 1 2 5 Treads . | . . . . . . . . . . . . . . . . . . . . . . . . . Leg 2 | . . . . . . . . . . . . . . . . . . . . . . . . 2 Wheel . | . . . . . . . . . . . . . . . . . . . . . . . . . Hover 2 | . . . . . 1 . . . . . . . . . . . . . . . . . . 1 Flight 11 | . . . . . . 3 1 . . . . . . . 1 . . . . 1 . 1 2 2 Utility 33 | . . . . 1 2 5 . 10 2 2 . . . . 1 . 2 . 1 4 . 1 . 2 Device 7 | . . . . 1 1 2 . 1 . 1 . . . . 1 . . . . . . . . . Storage . | . . . . . . . . . . . . . . . . . . . . . . . . . Processor 13 | . . . . . 1 1 . 3 1 1 . . . . . . 2 . 1 1 . 1 . 1 Hackware 13 | . . . . . . 2 . 6 1 . . . . . . . . . . 3 . . . 1 Protection . | . . . . . . . . . . . . . . . . . . . . . . . . . Artifact . | . . . . . . . . . . . . . . . . . . . . . . . . . Weapon 15 | 2 . . . 1 . 1 . . . . . . . . . . . . . 1 1 . . 9 Energy Gun 1 | 1 . . . . . . . . . . . . . . . . . . . . . . . . Energy Cannon . | . . . . . . . . . . . . . . . . . . . . . . . . . Ballistic Gun 2 | 1 . . . . . . . . . . . . . . . . . . . . . . . 1 Ballistic Cannon 6 | . . . . . . . . . . . . . . . . . . . . . . . . 6 Launcher 1 | . . . . . . . . . . . . . . . . . . . . . . . . 1 Special Weapon . | . . . . . . . . . . . . . . . . . . . . . . . . . Impact Weapon 1 | . . . . . . . . . . . . . . . . . . . . . . . . 1 Slashing Weapon 2 | . . . . 1 . . . . . . . . . . . . . . . 1 . . . . Piercing Weapon 1 | . . . . . . . . . . . . . . . . . . . . . 1 . . . Special Melee Weapon 1 | . . . . . . 1 . . . . . . . . . . . . . . . . . . Unidentified Prototypes 8 | . . . . . 1 1 1 . . . . . . . . . . 1 . . 3 . 1 . Corrupted Parts 5 | . . . . . . . . . . . . . . . . . . . . . . . . 5 System Corruption 33 | . . . . . . . . . . . . . . . . . . . . . . . . 33 Parts Lost 39 | . . 1 . . 2 . . 1 . . . . . . 2 1 . . 1 2 2 2 . 25 Power 3 | . . . . . . . . . . . . . . . . . . . 1 . 1 . . 1 Propulsion 14 | . . . . . . . . . . . . . . . 1 . . . . 1 . . . 12 Utility 12 | . . . . . 2 . . . . . . . . . 1 1 . . . . 1 2 . 5 Weapon 10 | . . 1 . . . . . 1 . . . . . . . . . . . 1 . . . 7 Highest Loss Streak 12 | . . 1 . . 2 . . 1 . . . . . . 2 1 . . 1 2 1 1 . 12 To Critical Strikes . | . . . . . . . . . . . . . . . . . . . . . . . . . Average Backups 2 | . . . . 1 1 2 3 4 4 3 3 3 4 4 3 3 3 3 3 3 3 2 1 1 Power . | . . . . . . . 1 1 1 1 1 1 1 1 1 1 1 1 . . . . . . Propulsion . | . . . . . . . . 1 1 1 1 1 1 1 . . . . . . . 1 . . Utility . | . . . . . . . 1 1 1 . . . 1 1 1 1 1 1 1 1 1 . . . Weapon 1 | . . . . 1 1 1 1 1 1 1 1 1 1 1 1 1 1 1 1 1 1 1 1 1 Tool/Special . | . . . . . . . . . . . . . . . . . . . . . . . . . Unused Backups 1 | . . . . . . . . . . . . . . . . . . . . . 1 . . . Power . | . . . . . . . . . . . . . . . . . . . . . . . . . Propulsion . | . . . . . . . . . . . . . . . . . . . . . . . . . Utility 1 | . . . . . . . . . . . . . . . . . . . . . 1 . . . Weapon . | . . . . . . . . . . . . . . . . . . . . . . . . . Tool/Special . | . . . . . . . . . . . . . . . . . . . . . . . . . Average Slot Usage (%) 78 | . 28 27 14 17 20 49 76 93 98 99 100 100 100 100 91 84 87 94 97 85 83 78 75 67 Engine 3 | . . . . . . 4 7 7 6 5 5 5 5 5 5 5 5 5 5 4 2 . . . Flight 16 | . . . . . . 17 23 22 20 17 17 17 17 17 19 21 21 21 21 16 19 19 27 14 Device 9 | . . . . 3 6 10 15 10 11 17 17 17 17 17 15 10 10 10 10 9 9 3 . . Processor 11 | . . . . . 2 4 7 15 6 10 11 11 11 11 10 10 13 21 23 15 14 17 16 19 Hackware 24 | . . . . . . 1 7 22 40 35 35 35 35 35 29 26 26 26 26 30 33 28 24 25 Ballistic Gun 3 | . 14 14 14 11 . . . 4 6 5 5 5 5 5 5 5 5 5 5 2 . . . . Slashing Weapon 4 | . . . . 3 9 7 7 7 6 5 5 5 5 5 5 5 5 5 5 3 3 4 4 1 Peak Build Rating 113 | 2 2 2 1 11 13 36 39 49 57 65 65 65 65 65 72 72 78 79 82 85 92 104 105 113 Average Rating 61 | 1 2 1 1 3 11 24 38 45 56 64 65 65 65 65 68 67 71 78 80 75 86 100 104 84 On Entrance 51 | . 2 2 1 1 11 13 36 39 48 57 65 65 65 65 65 72 67 78 79 81 85 91 93 105 Avg Prop Armor Cover (%) 4 | . . . . . . . . . 5 . . . . . 4 4 4 4 . 4 . . . 6 Naked Turns . | . . . . . . . . . . . . . . . . . . . . . . . . . Heaviest Build 24 | 3 3 3 1 4 4 16 16 16 16 17 17 17 17 17 17 17 16 16 16 12 19 21 20 24 Greatest Support 53 | 3 3 3 3 3 8 18 18 17 17 17 17 17 17 17 24 17 17 24 24 33 33 39 53 53 Greatest Overweight (x) 4 | . . . . 1 1 . . 1 2 . . . . . . . . . . 1 . . . 4 Average Overweight (x) . | . . . . . . . . . . . . . . . . . . . . . . . . . Largest Inventory Capacity 5 | 5 5 5 5 5 5 5 5 5 5 5 5 5 5 5 5 5 5 5 5 5 5 5 5 5 Average Capacity 5 | 5 5 5 5 5 5 5 5 5 5 5 5 5 5 5 5 5 5 5 5 5 5 5 5 5 Most Carried 5 | . . . 1 1 1 3 4 5 5 4 3 4 4 4 3 3 3 4 4 4 5 5 2 3 Average Carried 2 | . . . . 1 1 2 3 4 4 3 3 3 4 4 3 3 3 3 3 3 4 4 1 1 Final Capacity 5 | 5 5 5 5 5 5 5 5 5 5 5 5 5 5 5 5 5 5 5 5 5 5 5 5 5 Final Carried 5 | . . . 1 1 1 3 4 5 5 3 3 4 4 4 3 3 3 4 3 4 4 5 1 1 Class Distribution -------------------- 47% | Wizard-Scout 13% | Mutant 11% | Wizard-Sprinter 5% | Hacker-Scout 5% | Hacker-Sprinter 4% | Scout 4% | Wizard-Mutant Dominant Class ---------------- Mutant | -10/Materials Mutant | -10/Mines Mutant | -10/Exiles Mutant | -9/Mines Mutant | -8/Materials Scout | -7/Factory Scout | -7/Waste Hacker-Sprinter | -7/Factory Wizard-Scout | -6/Factory Wizard-Scout | -5/Factory Wizard-Scout | -5/Upper Caves Wizard-Scout | -5/Upper Caves Wizard-Scout | -5/Warlord Wizard-Scout | -4/Proximity Caves Wizard-Scout | -4/Factory Hacker-Scout | -4/Upper Caves Hacker-Scout | -4/Upper Caves Hacker-Scout | -4/Zhirov Hacker-Scout | -3/Proximity Caves Wizard-Scout | -3/Research Wizard-Scout | -3/Testing Wizard-Scout | -2/Research Wizard-Sprinter | -1/Access Wizard-Sprinter | -1/Command Resources | -11 -10 -10 -10 -9 -8 -7 -7 -7 -6 -5 -5 -5 -5 -4 -4 -4 -4 -4 -3 -3 -3 -2 -1 -1 ----------- Run | Yrd Mat Min Exi Min Mat Fac Was Fac Fac Fac Upp Upp War Pro Fac Upp Upp Zhi Pro Res Tes Res Acc Com Matter Collected 1694 | . . 117 . 108 28 118 . 196 10 . 10 . . 11 . 49 20 10 10 52 . 80 20 855 Remotely . | . . . . . . . . . . . . . . . . . . . . . . . . . Salvage Created 1251 | . . . . 19 29 186 . 229 10 . . . . 21 15 63 . 325 11 120 . 22 38 163 Parts 99 | . . . . 4 5 8 . 33 4 . . . . 3 . 1 . 2 4 18 . 1 4 12 Haulers Intercepted . | . . . . . . . . . . . . . . . . . . . . . . . . . Recyclers Shooed . | . . . . . . . . . . . . . . . . . . . . . . . . . Parts Field Recycled . | . . . . . . . . . . . . . . . . . . . . . . . . . Retrieved Matter . | . . . . . . . . . . . . . . . . . . . . . . . . . Parts Self-Destructed 6 | . . . . . . . . . . . . . . 3 . . . . 3 . . . . . Prevented . | . . . . . . . . . . . . . . . . . . . . . . . . . Parts Restored . | . . . . . . . . . . . . . . . . . . . . . . . . . Kills | -11 -10 -10 -10 -9 -8 -7 -7 -7 -6 -5 -5 -5 -5 -4 -4 -4 -4 -4 -3 -3 -3 -2 -1 -1 ------- Run | Yrd Mat Min Exi Min Mat Fac Was Fac Fac Fac Upp Upp War Pro Fac Upp Upp Zhi Pro Res Tes Res Acc Com Combat Hostiles Destroyed 6 | . . . . . . . . . . . . . . 2 . . . . 1 . . . . 3 Melee 5 | . . . . . . . . . . . . . . 2 . . . . 1 . . . . 2 Cannons 1 | . . . . . . . . . . . . . . . . . . . . . . . . 1 Classes Destroyed 9 | . . . . 1 1 4 . . . . . . . 1 . . . . . . . . . 2 Worker 5 | . . . . . . 1 . 2 . . . . . . . . . . . 1 . . 1 . Builder 14 | . . . . . 2 . . 6 1 . . . . . . . . . . 3 . 1 1 . Tunneler 2 | . . . . 1 . 1 . . . . . . . . . . . . . . . . . . Recycler 1 | . . . . . . 1 . . . . . . . . . . . . . . . . . . Operator 7 | . . . . . . 2 . 2 . . . . . . 1 . . . . 1 . . . 1 Drone 3 | . . . . . . . . . . . . . . 2 . . . . 1 . . . . . Watcher 4 | . . . . . . 1 . 2 . . . . . . . . . . . . . . . 1 Programmer 2 | . . . . . . . . . . . . . . . . . . . . . . . . 2 M Guard 1 | . . . . . . . . . . . . . . . . . . . . . . . . 1 Best Kill Streak 3 | . . . . 1 1 2 . 3 1 . . . . 2 1 . . . 1 3 . 1 2 2 Combat Bots Only 2 | . . . . . . . . . . . . . . 2 . . . . 1 . . . . 2 Max Kills in Single Turn 1 | . . . . 1 1 1 . 1 1 . . . . 1 1 . . . 1 1 . 1 1 1 Gunslinging . | . . . . . . . . . . . . . . . . . . . . . . . . . Exploded . | . . . . . . . . . . . . . . . . . . . . . . . . . Melee 1 | . . . . . . . . . . . . . . 1 . . . . 1 . . . . 1 Uniques/NPCs Destroyed . | . . . . . . . . . . . . . . . . . . . . . . . . . Combat | -11 -10 -10 -10 -9 -8 -7 -7 -7 -6 -5 -5 -5 -5 -4 -4 -4 -4 -4 -3 -3 -3 -2 -1 -1 -------- Run | Yrd Mat Min Exi Min Mat Fac Was Fac Fac Fac Upp Upp War Pro Fac Upp Upp Zhi Pro Res Tes Res Acc Com Hostile Shots Fired 255 | . . 12 . . 8 . . . 2 . 1 6 8 . 6 8 . . 9 1 8 2 4 180 Missed 94 | . . 6 . . 1 . . . 2 . 1 2 3 . 3 5 . . 4 . 3 . 2 62 Hits 161 | . . 6 . . 7 . . . . . . 4 5 . 3 3 . . 5 1 5 2 2 118 Projectile 161 | . . 6 . . 7 . . . . . . 4 5 . 3 3 . . 5 1 5 2 2 118 Critical Strikes 5 | . . . . . . . . . . . . . . . 2 . . . . 1 . . . 2 Part Disruptions 9 | . . . . . . . . . . . . . . . . . . . . . . . . 9 Damage Taken 5555 | . . 66 . . 177 . . 66 . . . . 98 . 68 51 . . 114 84 200 189 77 4365 Core 1915 | . . 20 . . 86 . . 3 . . . . . . . 26 . . . 74 54 48 . 1604 Absorbed by Shields . | . . . . . . . . . . . . . . . . . . . . . . . . . Regen/Repaired (Parts) 25 | . . . . . . . . 23 . . . . . . . . . . . . . 2 . . Core Remaining (%) 94 | 100 . . . 92 84 . . 99 100 . . . . 100 . . . . 97 . 83 96 . . Volleys Fired 61 | . . . . . . . . . . . . . . . . . . . . . . . . 61 Largest 2 | . . . . . . . . . . . . . . . . . . . . . . . . 2 Hottest 108 | . . . . . . . . . . . . . . . . . . . . . . . . 108 Shots Fired 92 | . . . . . . . . 2 . . . . . . . . . . . . . . . 90 Gun 4 | . . . . . . . . 2 . . . . . . . . . . . . . . . 2 Cannon 78 | . . . . . . . . . . . . . . . . . . . . . . . . 78 Launcher 10 | . . . . . . . . . . . . . . . . . . . . . . . . 10 Special . | . . . . . . . . . . . . . . . . . . . . . . . . . Kinetic 82 | . . . . . . . . 2 . . . . . . . . . . . . . . . 80 Thermal . | . . . . . . . . . . . . . . . . . . . . . . . . . Explosive 10 | . . . . . . . . . . . . . . . . . . . . . . . . 10 Electromagnetic . | . . . . . . . . . . . . . . . . . . . . . . . . . Robot Hit Streak 19 | . . . . . . . . 1 . . . . . . . . . . . . . . . 19 Robot Miss Streak 4 | . . . . . . . . . . . . . . . . . . . . . . . . 4 Penetration Max . | . . . . . . . . . . . . . . . . . . . . . . . . . Secondary Targets . | . . . . . . . . . . . . . . . . . . . . . . . . . Shots Hit Robots 134 | . . . . 1 2 9 . 14 1 . . . . 2 1 1 . 6 1 7 1 1 4 83 Core Hits 50 | . . . . 1 . 3 . 8 1 . . . . 2 . 1 . 2 1 2 . . 1 28 Critical Kills . | . . . . . . . . . . . . . . . . . . . . . . . . . Critical Parts Destroyed 3 | . . . . . . . . . . . . . . . . . . . . . . . . 3 Critical Strikes 5 | . . . . . . . . . . . . . . . . . . . . . . . . 5 Destroy 2 | . . . . . . . . . . . . . . . . . . . . . . . . 2 Blast 1 | . . . . . . . . . . . . . . . . . . . . . . . . 1 Smash 2 | . . . . . . . . . . . . . . . . . . . . . . . . 2 Melee Attacks 320 | . . . . 3 15 29 . 52 29 4 7 6 . 12 18 3 5 7 7 27 12 25 36 23 Impact 12 | . . . . . . . . . . . . . . . . . . . . . . . . 12 Slashing 308 | . . . . 3 15 29 . 52 29 4 7 6 . 12 18 3 5 7 7 27 12 25 36 11 Piercing . | . . . . . . . . . . . . . . . . . . . . . . . . . Sneak Attacks 28 | . . . . 1 2 4 . 10 1 . . . . . . . . . . 6 . 1 2 1 Combat Hostiles 1 | . . . . . . . . . . . . . . . . . . . . . . . . 1 Follow-up Attacks . | . . . . . . . . . . . . . . . . . . . . . . . . . Damage Inflicted 8789 | . . . . 84 188 759 . 1285 90 . . . . 85 57 85 . 547 58 617 69 110 403 4352 Guns 54 | . . . . . . . . . . . . . . . . . . . . . . . . 54 Cannons 2566 | . . . . . . . . . . . . . . . . . . . . . . . . 2566 Explosions 595 | . . . . . . . . . . . . . . . . . . . . . . . . 595 Melee 5564 | . . . . 84 188 759 . 1285 90 . . . . 85 57 85 . 547 58 617 69 100 403 1137 Ramming 10 | . . . . . . . . . . . . . . . . . . . . . . 10 . . Kinetic 2620 | . . . . . . . . . . . . . . . . . . . . . . . . 2620 Thermal . | . . . . . . . . . . . . . . . . . . . . . . . . . Explosive 595 | . . . . . . . . . . . . . . . . . . . . . . . . 595 Electromagnetic . | . . . . . . . . . . . . . . . . . . . . . . . . . Impact 585 | . . . . . . . . . . . . . . . . . . . . . . . . 585 Slashing 4979 | . . . . 84 188 759 . 1285 90 . . . . 85 57 85 . 547 58 617 69 100 403 552 Piercing . | . . . . . . . . . . . . . . . . . . . . . . . . . Highest Corruption 43 | . . . . . 3 . 8 8 . . . . . . . . . . . . . 1 . 43 Average Corruption 11 | . . . . . 3 . 8 8 . . . . . . . . . . . . . 1 . 26 Corruption Purged . | . . . . . . . . . . . . . . . . . . . . . . . . . Corruption Blocked . | . . . . . . . . . . . . . . . . . . . . . . . . . Effects 60 | . . . . . 6 . 1 30 . . . . . . . . . . . . . 1 . 22 Message Errors 20 | . . . . . 1 . 1 11 . . . . . . . . . . . . . . . 7 Matter Fused 13 | . . . . . 1 . . 7 . . . . . . . . . . . . . . . 5 Heat Flow Errors 7 | . . . . . . . . 4 . . . . . . . . . . . . . . . 3 Energy Discharges 5 | . . . . . 2 . . 1 . . . . . . . . . . . . . 1 . 1 Parts Rejected 2 | . . . . . 1 . . . . . . . . . . . . . . . . . . 1 Parts Fused 1 | . . . . . . . . 1 . . . . . . . . . . . . . . . . Data Loss (minor) 5 | . . . . . . . . 3 . . . . . . . . . . . . . . . 2 Data Loss (major) 2 | . . . . . 1 . . . . . . . . . . . . . . . . . . 1 Misfires 2 | . . . . . . . . 2 . . . . . . . . . . . . . . . . Alerts 1 | . . . . . . . . 1 . . . . . . . . . . . . . . . . Misdirections 1 | . . . . . . . . . . . . . . . . . . . . . . . . 1 Weapon Failures 1 | . . . . . . . . . . . . . . . . . . . . . . . . 1 Overload Shots . | . . . . . . . . . . . . . . . . . . . . . . . . . Overflow Damage 1819 | . . . . . 118 372 . 309 . . . . . . 17 . . 316 . 273 . 60 149 205 Projectiles . | . . . . . . . . . . . . . . . . . . . . . . . . . Explosions . | . . . . . . . . . . . . . . . . . . . . . . . . . Melee 1819 | . . . . . 118 372 . 309 . . . . . . 17 . . 316 . 273 . 60 149 205 Knockbacks 1 | . . . . . . . . . . . . . . . . . . . . . . . . 1 Impact . | . . . . . . . . . . . . . . . . . . . . . . . . . Kinetic 1 | . . . . . . . . . . . . . . . . . . . . . . . . 1 Secondary . | . . . . . . . . . . . . . . . . . . . . . . . . . Self-Inflicted Damage 4 | . . . . . . . . . . . . . . . . . . . . . . 4 . . Shots . | . . . . . . . . . . . . . . . . . . . . . . . . . Rammed 2 | . . . . . . . . . . . . . . . . . . . . . . 2 . . Targets Rammed 2 | . . . . . . . . . . . . . . . . . . . . . . 2 . . Kicked . | . . . . . . . . . . . . . . . . . . . . . . . . . Crushed . | . . . . . . . . . . . . . . . . . . . . . . . . . Highest Temperature 182 | . . . . . . . . 182 . . . . 3 . . . . . . . 11 . 93 152 Average Temperature 33 | . . . . . . . . 76 . . . . 3 . . . . . . . 11 . 24 25 Received Heat Transfer 939 | . . 39 . . 27 . . . . . . . 18 . 54 . . . 9 . 27 9 27 729 Siege Activations . | . . . . . . . . . . . . . . . . . . . . . . . . . Martial Activations . | . . . . . . . . . . . . . . . . . . . . . . . . . Shielding Activations . | . . . . . . . . . . . . . . . . . . . . . . . . . Robots Disrupted . | . . . . . . . . . . . . . . . . . . . . . . . . . Combat Hostiles . | . . . . . . . . . . . . . . . . . . . . . . . . . Robots Corrupted . | . . . . . . . . . . . . . . . . . . . . . . . . . Combat Hostiles . | . . . . . . . . . . . . . . . . . . . . . . . . . Parts Fried . | . . . . . . . . . . . . . . . . . . . . . . . . . Impact Corruptions 3 | . . . . . . . . . . . . . . . . . . . . . . . . 3 Robots Melted . | . . . . . . . . . . . . . . . . . . . . . . . . . Combat Hostiles . | . . . . . . . . . . . . . . . . . . . . . . . . . Parts Melted . | . . . . . . . . . . . . . . . . . . . . . . . . . Heat Transferred . | . . . . . . . . . . . . . . . . . . . . . . . . . Parts Sabotaged . | . . . . . . . . . . . . . . . . . . . . . . . . . Parts Stolen . | . . . . . . . . . . . . . . . . . . . . . . . . . Parts Stripped . | . . . . . . . . . . . . . . . . . . . . . . . . . Power Chain Reactions . | . . . . . . . . . . . . . . . . . . . . . . . . . Alert | -11 -10 -10 -10 -9 -8 -7 -7 -7 -6 -5 -5 -5 -5 -4 -4 -4 -4 -4 -3 -3 -3 -2 -1 -1 ------- Run | Yrd Mat Min Exi Min Mat Fac Was Fac Fac Fac Upp Upp War Pro Fac Upp Upp Zhi Pro Res Tes Res Acc Com Maximum Alert Level 5 | . . . . . . . . . . . . . . . . . . . . 1 5 4 2 2 Low Security (%) 63 | 100 100 100 . 100 100 100 100 100 100 100 . . . . 100 . . . . . . . . 57 Level 1 14 | . . . . . . . . . . . . . . . . . . . . 100 . . . 39 Level 2 8 | . . . . . . . . . . . . . . . . . . . . . . . 100 3 Level 3 10 | . . . . . . . . . . . . . . . . . . . . . . 96 . . Level 4 . | . . . . . . . . . . . . . . . . . . . . . . 3 . . Level 5 . | . . . . . . . . . . . . . . . . . . . . . . . . . High Security . | . . . . . . . . . . . . . . . . . . . . . . . . . Max Security 3 | . . . . . . . . . . . . . . . . . . . . . 99 . . . Peak Influence 1650 | . . 30 . 5 96 38 . 84 63 32 . . . . 154 . . . . 319 1650 1100 650 412 Initial 1100 | . . . . . . 38 . . 14 23 . . . . 150 . . . . 309 123 1100 555 412 Average 269 | . . 1 . . 10 7 . 26 21 21 . . . . 138 . . . . 273 1614 1003 582 177 Influence Increases 2123 | . . 30 . 7 168 86 . 298 210 17 45 . . 10 209 5 . 10 20 412 73 116 296 111 Destroy 0b10 Robot/C 120 | . . . . . . . . . . . . . . . . . . . . . 20 . 40 60 Destroy 0b10 Robot/NC 205 | . . . . 5 10 35 . 60 5 . . . . 10 5 5 . 10 5 25 . 5 15 10 Destroy Leader 20 | . . . . . . 2 . 4 . . . . . . . . . . . . . . 12 2 Allied During Kill 27 | . . . . . . . . . . . . . . . . . . . . . 5 . 22 . Successful Hack 89 | . . . . . 12 . . 47 . 9 . . . . . . . . . 21 . . . . Disable Machine 90 | . . . . . 15 15 . . . . . . . . 30 . . . . . 15 . 15 . Destroy Structure 327 | . . . . 2 11 19 . 37 25 8 . . . . 24 . . . . 36 18 66 72 9 Advance Influence 450 | . . . . . . . . . . . . . . . 150 . . . . 300 . . . . Partial Spotted 225 | . . . . . 30 15 . 15 45 . . . . . . . . . . 15 15 30 60 . Lose Combat Pursuer 570 | . . 30 . . 90 . . 135 135 . 45 . . . . . . . 15 15 . 15 60 30 Influence Decreases 3782 | . . 30 . 6 83 172 . 267 192 46 24 41 . 10 80 88 40 16 5 206 138 1005 577 756 Entered New Map 1596 | . . . . . 1 48 . . 17 26 8 9 . . . 48 10 6 . 6 98 715 371 233 Time Decay 1924 | . . 30 . 6 80 124 . 267 175 20 16 32 . 10 60 30 30 10 5 180 . 270 206 373 Lost Part 242 | . . . . . 2 . . . . . . . . . 20 10 . . . 20 20 20 . 150 Lost Ally 20 | . . . . . . . . . . . . . . . . . . . . . 20 . . . Squads Dispatched 30 | . 1 . . . 1 2 . 9 2 . . . . . 1 . . . . 2 6 1 4 1 Investigation 8 | . . . . . 1 1 . 5 . . . . . . 1 . . . . . . . . . Extermination 8 | . . . . . . 1 . 2 1 . . . . . . . . . . 1 . . 2 1 Reinforcement 8 | . 1 . . . . . . 2 1 . . . . . . . . . . 1 . 1 2 . Assault 6 | . . . . . . . . . . . . . . . . . . . . . 6 . . . Garrison . | . . . . . . . . . . . . . . . . . . . . . . . . . Intercept . | . . . . . . . . . . . . . . . . . . . . . . . . . Searches Triggered . | . . . . . . . . . . . . . . . . . . . . . . . . . Construction Impeded 1 | . . . . . . . . 1 . . . . . . . . . . . . . . . . Haulers Reinforced . | . . . . . . . . . . . . . . . . . . . . . . . . . Active Scanning Responses . | . . . . . . . . . . . . . . . . . . . . . . . . . Cargo Convoy Interrupts . | . . . . . . . . . . . . . . . . . . . . . . . . . Stealth | -11 -10 -10 -10 -9 -8 -7 -7 -7 -6 -5 -5 -5 -5 -4 -4 -4 -4 -4 -3 -3 -3 -2 -1 -1 --------- Run | Yrd Mat Min Exi Min Mat Fac Was Fac Fac Fac Upp Upp War Pro Fac Upp Upp Zhi Pro Res Tes Res Acc Com Distress Signals 16 | . . . . . 2 . . 3 . . . . . . . . . . . . . 9 1 1 Communications Jammed . | . . . . . . . . . . . . . . . . . . . . . . . . . Distress Signals . | . . . . . . . . . . . . . . . . . . . . . . . . . Times Spotted 132 | . 1 4 . . 6 3 4 10 8 . 5 1 21 2 3 2 . . 12 2 8 12 13 15 Peak Tracking Total 22 | . 1 2 . . 7 1 4 5 4 . 7 1 22 2 3 2 . . 9 1 4 6 3 4 Tactical Retreats 21 | . . 1 . . 2 . . 4 5 . 1 . . . . . . . 1 1 . 1 3 2 Traps | -11 -10 -10 -10 -9 -8 -7 -7 -7 -6 -5 -5 -5 -5 -4 -4 -4 -4 -4 -3 -3 -3 -2 -1 -1 ------- Run | Yrd Mat Min Exi Min Mat Fac Was Fac Fac Fac Upp Upp War Pro Fac Upp Upp Zhi Pro Res Tes Res Acc Com Traps Triggered 3 | . . . . . . 1 . 2 . . . . . . . . . . . . . . . . Indirectly . | . . . . . . . . . . . . . . . . . . . . . . . . . Trap Hack Attempts . | . . . . . . . . . . . . . . . . . . . . . . . . . Triggered . | . . . . . . . . . . . . . . . . . . . . . . . . . Disarmed . | . . . . . . . . . . . . . . . . . . . . . . . . . Reprogrammed . | . . . . . . . . . . . . . . . . . . . . . . . . . Reused . | . . . . . . . . . . . . . . . . . . . . . . . . . Traps Extracted . | . . . . . . . . . . . . . . . . . . . . . . . . . Installed . | . . . . . . . . . . . . . . . . . . . . . . . . . Triggered . | . . . . . . . . . . . . . . . . . . . . . . . . . Machines | -11 -10 -10 -10 -9 -8 -7 -7 -7 -6 -5 -5 -5 -5 -4 -4 -4 -4 -4 -3 -3 -3 -2 -1 -1 ---------- Run | Yrd Mat Min Exi Min Mat Fac Was Fac Fac Fac Upp Upp War Pro Fac Upp Upp Zhi Pro Res Tes Res Acc Com Machines Disabled 7 | . . . . . 1 1 . . . . . . . . 2 . . 1 . . 1 . 1 . Max in Single Turn 1 | . . . . . 1 1 . . . . . . . . 1 . . 1 . . 1 . 1 . Garrison Access 8 | . . . . . . . . 1 2 . . . . . 1 . . . . . . 3 1 . Machines Repaired . | . . . . . . . . . . . . . . . . . . . . . . . . . Machines Dismantled . | . . . . . . . . . . . . . . . . . . . . . . . . . Machines Sabotaged . | . . . . . . . . . . . . . . . . . . . . . . . . . Overloaded Fab Kills . | . . . . . . . . . . . . . . . . . . . . . . . . . Hacking | -11 -10 -10 -10 -9 -8 -7 -7 -7 -6 -5 -5 -5 -5 -4 -4 -4 -4 -4 -3 -3 -3 -2 -1 -1 --------- Run | Yrd Mat Min Exi Min Mat Fac Was Fac Fac Fac Upp Upp War Pro Fac Upp Upp Zhi Pro Res Tes Res Acc Com Machines Accessed 44 | . . . 1 . 2 4 . 13 3 1 1 2 1 . 3 . . 5 . 1 . 1 4 2 Terminals 21 | . . . . . 2 2 . 5 1 1 1 1 . . 2 . . . . 1 . . 3 2 Fabricators 8 | . . . . . . 2 . 6 . . . . . . . . . . . . . . . . Repair Stations 1 | . . . . . . . . 1 . . . . . . . . . . . . . . . . Recycling Units . | . . . . . . . . . . . . . . . . . . . . . . . . . Scanalyzers . | . . . . . . . . . . . . . . . . . . . . . . . . . Garrison Access 6 | . . . . . . . . 1 2 . . . . . 1 . . . . . . 1 1 . Total Hacks 91 | . . . 1 . 4 9 . 29 5 1 1 2 1 . 6 . . 18 . 3 . 1 5 5 Successful 72 | . . . 1 . 2 5 . 24 4 1 1 2 1 . 4 . . 18 . 2 . 1 4 2 Failed 19 | . . . . . 2 4 . 5 1 . . . . . 2 . . . . 1 . . 1 3 Catastrophic 2 | . . . . . 1 1 . . . . . . . . . . . . . . . . . . Database Lockouts . | . . . . . . . . . . . . . . . . . . . . . . . . . Manual 30 | . . . 1 . 4 5 . 12 3 . . . . . 4 . . . . 1 . . . . Terminals 34 | . . . . . 4 3 . 6 3 1 1 1 . . 4 . . . . 3 . . 3 5 Fabricators 26 | . . . . . . 6 . 20 . . . . . . . . . . . . . . . . Repair Stations 2 | . . . . . . . . 2 . . . . . . . . . . . . . . . . Recycling Units . | . . . . . . . . . . . . . . . . . . . . . . . . . Scanalyzers . | . . . . . . . . . . . . . . . . . . . . . . . . . Garrison Access 8 | . . . . . . . . 1 2 . . . . . 2 . . . . . . 1 2 . Terminal Hacks 40 | . . . 1 . 1 . . 4 2 1 1 2 1 . 2 . . 18 . 2 . . 3 2 Record 8 | . . . . . . . . . . . 1 1 . . . . . 6 . . . . . . Part Schematic 5 | . . . . . 1 . . . . . . . . . . . . 4 . . . . . . Robot Analysis 4 | . . . . . . . . . . . . . . . . . . 4 . . . . . . Prototype ID Bank 4 | . . . . . . . . . . . . . . . . . . 4 . . . . . . Open Door 6 | . . . . . . . . . . . . 1 1 . . . . . . . . . 3 1 Level Access Points 2 | . . . . . . . . 1 1 . . . . . . . . . . . . . . . Branch Access Points 3 | . . . . . . . . . . 1 . . . . 1 . . . . 1 . . . . Fabricator Index 3 | . . . . . . . . 1 1 . . . . . 1 . . . . . . . . . Recall Investigation 1 | . . . . . . . . 1 . . . . . . . . . . . . . . . . Recall Extermination 2 | . . . . . . . . 1 . . . . . . . . . . . 1 . . . . Proto ID Catalog 1 | . . . 1 . . . . . . . . . . . . . . . . . . . . . Disengage Seal 1 | . . . . . . . . . . . . . . . . . . . . . . . . 1 Fabricator Hacks 15 | . . . . . . 4 . 11 . . . . . . . . . . . . . . . . Network Status 1 | . . . . . . 1 . . . . . . . . . . . . . . . . . . Load Schematic 9 | . . . . . . 2 . 7 . . . . . . . . . . . . . . . . Build 5 | . . . . . . 1 . 4 . . . . . . . . . . . . . . . . Repair Station Hacks 2 | . . . . . . . . 2 . . . . . . . . . . . . . . . . Scan Component 1 | . . . . . . . . 1 . . . . . . . . . . . . . . . . Repair 1 | . . . . . . . . 1 . . . . . . . . . . . . . . . . Recycling Unit Hacks . | . . . . . . . . . . . . . . . . . . . . . . . . . Scanalyzer . | . . . . . . . . . . . . . . . . . . . . . . . . . Garrison Access Hacks 7 | . . . . . . . . 1 2 . . . . . 2 . . . . . . 1 1 . Seal Access 6 | . . . . . . . . 1 2 . . . . . 1 . . . . . . 1 1 . Coupler Status 1 | . . . . . . . . . . . . . . . 1 . . . . . . . . . Unauthorized Hacks 8 | . . . . . 1 1 . 6 . . . . . . . . . . . . . . . . Terminals 3 | . . . . . 1 . . 2 . . . . . . . . . . . . . . . . Botnet 3 | . . . . . 1 . . 2 . . . . . . . . . . . . . . . . Fabricators 5 | . . . . . . 1 . 4 . . . . . . . . . . . . . . . . Prioritize 2 | . . . . . . . . 2 . . . . . . . . . . . . . . . . Recompile 3 | . . . . . . 1 . 2 . . . . . . . . . . . . . . . . Repair Stations . | . . . . . . . . . . . . . . . . . . . . . . . . . Recycling Units . | . . . . . . . . . . . . . . . . . . . . . . . . . Scanalyzers . | . . . . . . . . . . . . . . . . . . . . . . . . . Garrison Access . | . . . . . . . . . . . . . . . . . . . . . . . . . Data Cores Recovered 5 | . . . . . . 2 . 1 . . . . . . 1 . . . . . . . . 1 Used 1 | . . . . . . . . . . . . . . . 1 . . . . . . . . . Hacking Detections 20 | . . . . . 1 2 . 8 . 1 . 1 . . 3 . . . . 1 . . 2 1 Full Trace Events 5 | . . . . . 1 . . 3 . . . . . . 1 . . . . . . . . . Feedback Events . | . . . . . . . . . . . . . . . . . . . . . . . . . Feedback Blocked . | . . . . . . . . . . . . . . . . . . . . . . . . . Robot Schematics Acquired . | . . . . . . . . . . . . . . . . . . . . . . . . . Robots Built . | . . . . . . . . . . . . . . . . . . . . . . . . . Authchips . | . . . . . . . . . . . . . . . . . . . . . . . . . Time . | . . . . . . . . . . . . . . . . . . . . . . . . . Total Robot Build Rating . | . . . . . . . . . . . . . . . . . . . . . . . . . Part Schematics Acquired 5 | . . . . . 1 . . . . . . . . . . . . 4 . . . . . . Parts Built 5 | . . . . . . 1 . 4 . . . . . . . . . . . . . . . . Authchips 3 | . . . . . . 1 . 2 . . . . . . . . . . . . . . . . Time 120 | . . . . . . 24 . 96 . . . . . . . . . . . . . . . . Total Part Build Rating 15 | . . . . . . 3 . 12 . . . . . . . . . . . . . . . . Part Studies Acquired . | . . . . . . . . . . . . . . . . . . . . . . . . . Parts Repaired 1 | . . . . . . . . 1 . . . . . . . . . . . . . . . . Time 44 | . . . . . . . . 44 . . . . . . . . . . . . . . . . Parts Recycled . | . . . . . . . . . . . . . . . . . . . . . . . . . Recycled Matter . | . . . . . . . . . . . . . . . . . . . . . . . . . Retrieved Matter . | . . . . . . . . . . . . . . . . . . . . . . . . . Retrieved Components . | . . . . . . . . . . . . . . . . . . . . . . . . . Parts Scanalyzed . | . . . . . . . . . . . . . . . . . . . . . . . . . Part Schematics Acquired . | . . . . . . . . . . . . . . . . . . . . . . . . . Parts Damaged . | . . . . . . . . . . . . . . . . . . . . . . . . . Bothacking | -11 -10 -10 -10 -9 -8 -7 -7 -7 -6 -5 -5 -5 -5 -4 -4 -4 -4 -4 -3 -3 -3 -2 -1 -1 ------------ Run | Yrd Mat Min Exi Min Mat Fac Was Fac Fac Fac Upp Upp War Pro Fac Upp Upp Zhi Pro Res Tes Res Acc Com Used RIF Installer . | . . . . . . . . . . . . . . . . . . . . . . . . . Robots Hacked . | . . . . . . . . . . . . . . . . . . . . . . . . . Non-combat . | . . . . . . . . . . . . . . . . . . . . . . . . . Combat . | . . . . . . . . . . . . . . . . . . . . . . . . . Robot Hacks Applied . | . . . . . . . . . . . . . . . . . . . . . . . . . Relay Couplers Released 3 | . . . . . . . . . . . . . . . . . . . . . . 3 . . Machine Destruction 3 | . . . . . . . . . . . . . . . . . . . . . . 3 . . Fabnet Peak Effective % . | . . . . . . . . . . . . . . . . . . . . . . . . . Robots Rewired 1 | . . . . . . . . . . . . . . . . . . . . . 1 . . . Allies Hacked . | . . . . . . . . . . . . . . . . . . . . . . . . . Hacks Repelled . | . . . . . . . . . . . . . . . . . . . . . . . . . Allies | -11 -10 -10 -10 -9 -8 -7 -7 -7 -6 -5 -5 -5 -5 -4 -4 -4 -4 -4 -3 -3 -3 -2 -1 -1 -------- Run | Yrd Mat Min Exi Min Mat Fac Was Fac Fac Fac Upp Upp War Pro Fac Upp Upp Zhi Pro Res Tes Res Acc Com Total Allies 5 | . . . . . . . 1 . . . . . . . . . . . . . 1 . 3 . Largest Group 3 | . . . . . . . 1 . . . . . . . . . . . . . 1 . 3 . Highest-Rated Group 379 | . . . . . . . 31 . . . . . . . . . . . . . 149 . 379 . Highest-Rated Ally 149 | . . . . . . . 31 . . . . . . . . . . . . . 149 . 135 . Total Orders . | . . . . . . . . . . . . . . . . . . . . . . . . . Ally Attacks 27 | . . . . . . . 4 . . . . . . . . . . . . . 10 . 13 . Total Damage 893 | . . . . . . . 20 . . . . . . . . . . . . . 473 . 400 . Kills 4 | . . . . . . . . . . . . . . . . . . . . . 1 . 3 . Allies Corrupted . | . . . . . . . . . . . . . . . . . . . . . . . . . Allies Melted . | . . . . . . . . . . . . . . . . . . . . . . . . . Intel | -11 -10 -10 -10 -9 -8 -7 -7 -7 -6 -5 -5 -5 -5 -4 -4 -4 -4 -4 -3 -3 -3 -2 -1 -1 ------- Run | Yrd Mat Min Exi Min Mat Fac Was Fac Fac Fac Upp Upp War Pro Fac Upp Upp Zhi Pro Res Tes Res Acc Com Active Infowar (turns) 7508 | . . . . 25 234 428 27 765 471 58 1362 282 217 595 134 66 77 63 77 372 181 582 434 1058 Optics 2679 | . . . . . . . . . . . . . . . . . . . 52 372 181 582 434 1058 Sensors 2957 | . . . . . . 6 . . 395 58 1362 282 217 595 41 1 . . . . . . . . Terrain 4744 | . . . . 25 112 211 27 304 . 58 1362 282 217 595 134 66 77 63 77 372 181 581 . . Structural 5294 | . . . . . 122 428 27 765 471 58 1362 282 217 595 134 66 77 63 77 372 178 . . . Robot Analysis Total 4 | . . . . . . . . . . . . . . . . . . 4 . . . . . . Derelict Logs Recovered 5 | . . . . 1 . . . . . . 1 . . 1 . 1 1 . . . . . . . Drone Launches . | . . . . . . . . . . . . . . . . . . . . . . . . . Drone Recoveries . | . . . . . . . . . . . . . . . . . . . . . . . . . Exploration | -11 -10 -10 -10 -9 -8 -7 -7 -7 -6 -5 -5 -5 -5 -4 -4 -4 -4 -4 -3 -3 -3 -2 -1 -1 ------------- Run | Yrd Mat Min Exi Min Mat Fac Was Fac Fac Fac Upp Upp War Pro Fac Upp Upp Zhi Pro Res Tes Res Acc Com Turns Passed 8331 | 15 27 495 111 133 301 428 27 765 471 58 1362 282 217 595 134 66 77 63 77 372 181 582 434 1058 Spaces Moved 10163 | 24 54 163 220 228 295 922 82 1361 719 131 447 221 459 241 300 223 227 172 217 645 363 919 677 853 Core 1036 | 24 54 163 220 228 161 . . . . . . . . . . . . . . . . . . 186 Treads . | . . . . . . . . . . . . . . . . . . . . . . . . . Legs 9 | . . . . . . . . . . . . . . . . . . . . . . . . 9 Wheels . | . . . . . . . . . . . . . . . . . . . . . . . . . Hover 164 | . . . . . 134 30 . . . . . . . . . . . . . . . . . . Flight 8954 | . . . . . . 892 82 1361 719 131 447 221 459 241 300 223 227 172 217 645 363 919 677 658 Fastest Speed 18 | 50 50 50 50 50 50 32 29 29 29 29 29 29 29 29 26 27 27 26 26 26 26 24 18 18 Average Speed 33 | 50 50 50 50 54 65 34 29 29 31 29 29 29 29 29 26 27 27 26 26 29 26 24 18 56 Slowest Speed 385 | 50 50 50 50 100 100 50 32 114 200 29 29 29 29 29 27 27 27 27 26 104 26 26 18 385 Overloaded Moves . | . . . . . . . . . . . . . . . . . . . . . . . . . Propulsion Burnouts . | . . . . . . . . . . . . . . . . . . . . . . . . . Robots Hopped 4 | . . . . . . . . . . . . . . . . . . . . . . 2 . 2 Potential Cave-ins 5 | . . . . . . . . . 2 . . . . . . . . . . . . 1 2 . Cave-ins Triggered 2 | . . . . . 1 . . . . . . . . . . . . . . . . 1 . . Teleports 1 | . . . . . . . . . . . . . . . . . . . . . 1 . . . Exploration Rate (%) 36 | 4 18 39 60 39 27 24 76 42 20 5 61 44 63 43 7 40 35 62 47 15 46 35 29 22 Regions Visited 24 Branch Regions 13 Pre-discovered Areas 5 | . . . . . . . . . . . 1 . . . . . 1 3 . . . . . . Known Exits Taken 16 | . . . . . . . . 1 1 1 1 1 1 1 1 1 1 1 1 1 1 1 1 . Unknown Exits Taken 6 | 1 1 1 1 1 1 . . . . . . . . . . . . . . . . . . . Scrap Searched 4 | . . . . 1 . . . . . . . . . . . . 2 . 1 . . . . . Spaces Dug 229 | . . . . 2 12 19 . 37 28 4 7 6 . 9 13 2 5 . 6 18 9 24 28 . Terrain Destroyed 232 | . . . . 2 12 19 . 37 28 4 7 6 . 9 13 2 5 . 6 18 9 24 28 3 Melee 229 | . . . . 2 12 19 . 37 28 4 7 6 . 9 13 2 5 . 6 18 9 24 28 . Projectile 3 | . . . . . . . . . . . . . . . . . . . . . . . . 3 AOE . | . . . . . . . . . . . . . . . . . . . . . . . . . Terrain Rammed . | . . . . . . . . . . . . . . . . . . . . . . . . . Walls Destroyed . | . . . . . . . . . . . . . . . . . . . . . . . . . Machines Disabled . | . . . . . . . . . . . . . . . . . . . . . . . . . Actions | -11 -10 -10 -10 -9 -8 -7 -7 -7 -6 -5 -5 -5 -5 -4 -4 -4 -4 -4 -3 -3 -3 -2 -1 -1 --------- Run | Yrd Mat Min Exi Min Mat Fac Was Fac Fac Fac Upp Upp War Pro Fac Upp Upp Zhi Pro Res Tes Res Acc Com Total 14554 | 25 53 575 220 232 384 994 83 1674 935 146 1671 432 542 753 335 225 235 181 229 786 424 1222 916 1282 Wait 3913 | . . 413 . . 71 30 . 238 180 10 1218 205 84 501 14 . 2 1 4 104 36 273 202 327 Move 10134 | 23 53 162 219 227 294 922 81 1360 718 130 446 220 458 240 299 222 226 171 216 644 362 916 676 849 Hop 3 | . . . . . . . . . . . . . . . . . . . . . . 1 . 2 Pick Up 17 | . . . 1 . . . 1 4 3 . . 1 . . . . . 1 . . 2 2 . 2 Fast Attach 61 | 2 . . . 1 4 10 . 12 1 . . . . . 2 . 2 1 1 6 3 2 . 14 Attach 14 | . . . . . . . . 1 2 2 . . . . 1 . . . 1 . 1 1 2 3 Detach 3 | . . . . . . 1 . . . . . . . . . . . . . 1 . . . 1 Swap 5 | . . . . 1 . 1 1 1 . . . . . . . . . . . . 1 . . . Drop 19 | . . . . . . 1 . 6 2 . . . . . 1 . . . . 4 4 1 . . Fire 61 | . . . . . . . . . . . . . . . . . . . . . . . . 61 Melee 320 | . . . . 3 15 29 . 52 29 4 7 6 . 12 18 3 5 7 7 27 12 25 36 23 Ram 1 | . . . . . . . . . . . . . . . . . . . . . . 1 . . Kick . | . . . . . . . . . . . . . . . . . . . . . . . . . Crush . | . . . . . . . . . . . . . . . . . . . . . . . . . Escape Stasis . | . . . . . . . . . . . . . . . . . . . . . . . . . Rewire 3 | . . . . . . . . . . . . . . . . . . . . . 3 . . . Trap . | . . . . . . . . . . . . . . . . . . . . . . . . . Miscellaneous . | . . . . . . . . . . . . . . . . . . . . . . . . . Route ------- -11/Scrapyard -10/Materials -10/Mines (discovered 2 exits: [*Mat] / *Exi) -10/Exiles -9/Mines -8/Materials (discovered 2 exits: *Fac / Sto) -7/Factory -7/Waste -7/Factory (discovered 6 exits: *Fac x4 / *Low x2) -6/Factory (discovered 5 exits: *Fac x4 / *Low) -5/Factory (discovered 4 exits: *Upp x2 / Ext x2) -5/Upper Caves -5/Upper Caves (discovered 2 exits: *Fac / *War) -5/Warlord -4/Proximity Caves -4/Factory (discovered 3 exits: *Upp x2 / Arm) -4/Upper Caves -4/Upper Caves -4/Zhirov -3/Proximity Caves -3/Research (discovered 2 exits: *Tes x2) -3/Testing -2/Research (discovered 2 exits: *Acc / *Qua) -1/Access (discovered 2 exits: Sur / *Com) -1/Command History --------- Turn | Location | Event 9 | -11/Scrapyard | Discovered new exit (range 15) 16 | -11/Scrapyard | Entered Materials 35 | -10/Materials | Discovered new exit (range 16) 43 | -10/Materials | Entered Mines 88 | -10/Mines | Excavation squad dispatched 88 | -10/Mines | A large section of the Mines collapsed 313 | -10/Mines | Build established: Mutant 338 | -10/Mines | Excavation squad dispatched 524 | -10/Mines | Discovered new exit (range 3) 535 | -10/Mines | Deemed a non-threat by the Exiles lab entrance 536 | -10/Mines | Discovered new exit (range 5) 538 | -10/Mines | Entered Exiles 552 | -10/Exiles | Met 8R-AWN 559 | -10/Exiles | Met EX-HEX 574 | -10/Exiles | Met EX-BIN 580 | -10/Exiles | Aligned with FarCom system 580 | -10/Exiles | Given EX-Vault access code 597 | -10/Exiles | Opened EX-Vault 601 | -10/Exiles | Found Longsword +1 611 | -10/Exiles | Warned to stay clear of 0b10 Research branches 626 | -10/Exiles | Met EX-DEC 642 | -10/Exiles | Discovered new exit (range 14) 649 | -10/Exiles | Left Exiles lab with Longsword +1 649 | -10/Exiles | Entered Mines 777 | -9/Mines | Discovered new exit (range 6) 782 | -9/Mines | Entered Materials 782 | -8/Materials | Evolved 4 slots: Propulsion x1, Utility x3 783 | -8/Materials | Identified exit to Storage 894 | -8/Materials | Crushed by falling debris 1045 | -8/Materials | Discovered new exit (range 11) 1083 | -8/Materials | Entered Factory 1083 | -7/Factory | Evolved 2 slots: Utility x2 1391 | -7/Factory | Fabricated Hacking Suite? 1475 | -7/Factory | Discovered new exit (range 16) 1481 | -7/Factory | Identified exit to Factory 1511 | -7/Factory | Sucked down chute 1511 | -7/Factory | Entered Waste 1512 | -7/Waste | Met a frightened Derelict 1521 | -7/Waste | Spotted C-40 Crusher 1522 | -7/Waste | Spotted C-40 Crusher 1523 | -7/Waste | Spotted C-40 Crusher 1526 | -7/Waste | EMP discharged 1527 | -7/Waste | Spotted C-40 Crusher 1534 | -7/Waste | Spotted C-40 Crusher 1534 | -7/Waste | Discovered new exit (range 11) 1537 | -7/Waste | Identified exit to Factory 1538 | -7/Waste | Entered Factory 1592 | -7/Factory | Build established: Scout 1720 | -7/Factory | Discovered new exit (range 13) 1880 | -7/Factory | Fabricated Hacking Suite? 1912 | -7/Factory | Discovered new exit (range 4) 1913 | -7/Factory | Identified exit to Lower Caves 1941 | -7/Factory | Fabricated Hacking Suite (x1) 2089 | -7/Factory | Repaired Xenon Bombardment Thruster 2122 | -7/Factory | Fabricated Hacking Suite? 2252 | -7/Factory | Fabricated Hacking Suite (x1) 2303 | -7/Factory | Entered another Factory area 2303 | -6/Factory | Evolved 2 slots: Utility x2 2344 | -6/Factory | Discovered new exit (range 8) 2345 | -6/Factory | Identified exit to Lower Caves 2349 | -6/Factory | Identified exit to Factory 2774 | -6/Factory | Entered another Factory area 2774 | -5/Factory | Evolved 2 slots: Utility x2 2791 | -5/Factory | Identified exit to Upper Caves 2791 | -5/Factory | Identified exit to Extension 2832 | -5/Factory | Entered Upper Caves 2834 | -5/Upper Caves | Build established: Wizard-Scout 3974 | -5/Upper Caves | Encountered a Warlord checkpoint 4192 | -5/Upper Caves | Discovered new exit (range 7) 4194 | -5/Upper Caves | Identified exit to Upper Caves 4194 | -5/Upper Caves | Entered another Upper Caves area 4196 | -5/Upper Caves | Discovered new exit (range 7) 4198 | -5/Upper Caves | Identified exit to Factory 4205 | -5/Upper Caves | Encountered a Warlord checkpoint 4455 | -5/Upper Caves | Spotted B-75 Beast 4456 | -5/Upper Caves | Discovered new exit (range 20) 4476 | -5/Upper Caves | Identified exit to Warlord 4476 | -5/Upper Caves | Entered Warlord 4530 | -5/Warlord | Met Warlord 4535 | -5/Warlord | Warlord's base attacked by MAIN.C 4614 | -5/Warlord | Opened side exit 4691 | -5/Warlord | Discovered new exit (range 8) 4693 | -5/Warlord | Identified exit to Proximity Caves 4693 | -5/Warlord | Entered Proximity Caves 4695 | -4/Proximity Caves | Spotter reported a threat 4700 | -4/Proximity Caves | Learned Research trap positions 5287 | -4/Proximity Caves | Discovered exit to Factory (range 5) 5288 | -4/Proximity Caves | Entered Factory 5288 | -4/Factory | Evolved 2 slots: Propulsion x1, Utility x1 5383 | -4/Factory | Identified exit to Upper Caves 5383 | -4/Factory | Identified exit to Armory 5422 | -4/Factory | Entered Upper Caves 5478 | -4/Upper Caves | Discovered new exit (range 15) 5488 | -4/Upper Caves | Identified exit to Upper Caves 5488 | -4/Upper Caves | Entered another Upper Caves area 5533 | -4/Upper Caves | Encountered a Warlord checkpoint 5560 | -4/Upper Caves | Discovered new exit (range 6) 5561 | -4/Upper Caves | Identified exit to Zhirov 5563 | -4/Upper Caves | Learned location of Armory (-4) 5565 | -4/Upper Caves | Entered Zhirov 5566 | -4/Zhirov | Discovered new exit (range 3) 5571 | -4/Zhirov | Met Zhirov 5580 | -4/Zhirov | Found Alien Artifact 5580 | -4/Zhirov | Identified Integrated Reactor 5580 | -4/Zhirov | Installed Integrated Reactor, increased core energy generation (+10) 5585 | -4/Zhirov | Found Alien Artifact 5617 | -4/Zhirov | Learned location of Quarantine (-2) 5617 | -4/Zhirov | Learned location of Testing (-3) 5617 | -4/Zhirov | Learned location of Command (-1) 5621 | -4/Zhirov | Zhirov requested help retrieving the SGEMP Prototype 5628 | -4/Zhirov | Identified exit to Proximity Caves 5628 | -4/Zhirov | Entered Proximity Caves 5632 | -3/Proximity Caves | Spotter reported a threat 5633 | -3/Proximity Caves | Spotter reported a threat 5674 | -3/Proximity Caves | Build established: Hacker-Scout 5686 | -3/Proximity Caves | Attracted the attention of an 0b10 base 5701 | -3/Proximity Caves | Discovered new exit (range 19) 5705 | -3/Proximity Caves | Identified exit to Research 5705 | -3/Proximity Caves | Entered Research 5705 | -3/Research | Evolved 2 slots: Propulsion x2 5706 | -3/Research | Loaded intel: 67 trap records 5813 | -3/Research | Identified exit to Testing 6077 | -3/Research | Entered Testing 6078 | -3/Testing | Maximum security lockdown engaged 6146 | -3/Testing | Spotted Striker 6146 | -3/Testing | Spotted Striker 6150 | -3/Testing | Rewired PH-W47FZXHFXO 6190 | -3/Testing | Spotted Alpha 7 6194 | -3/Testing | Stole the SGEMP Prototype 6197 | -3/Testing | Identified Transdimensional Reconstructor 6197 | -3/Testing | Warped through subspace 6257 | -3/Testing | Discovered new exit (range 5) 6257 | -3/Testing | Identified exit to Research 6258 | -3/Testing | Entered Research 6258 | -2/Research | Warlord forces began assault on 0b10 6258 | -2/Research | Evolved 2 slots: Utility x2 6333 | -2/Research | Met up with Warlord 6368 | -2/Research | Research machine network offline 6469 | -2/Research | Build established: Wizard-Scout 6477 | -2/Research | Spotted B-90 Cyclops 6589 | -2/Research | Spotted B-90 Cyclops 6597 | -2/Research | Borebot progress halted 6611 | -2/Research | Discovered new exit (range 11) 6613 | -2/Research | Identified exit to Quarantine 6634 | -2/Research | Crushed by falling debris 6741 | -2/Research | Spotted Executioner 6742 | -2/Research | Spotted Executioner 6746 | -2/Research | Spotted B-90 Cyclops 6762 | -2/Research | Lost 15 allies 6789 | -2/Research | Discovered new exit (range 22) 6839 | -2/Research | Identified exit to Access 6840 | -2/Research | Entered Access 6840 | -1/Access | Evolved 2 slots: Propulsion x2 6841 | -1/Access | Delivered the SGEMP Prototype to Zhirov 6841 | -1/Access | Zhirov transferred Access data 6842 | -1/Access | Loaded intel: 125 machine locations 6842 | -1/Access | Loaded intel: 90 trap records 6842 | -1/Access | Identified exit to Surface 6842 | -1/Access | Discovered exit to Surface (range 151) 6842 | -1/Access | Identified exit to Command 6842 | -1/Access | Discovered exit to Command (range 215) 7016 | -1/Access | Zhirov warped through subspace 7069 | -1/Access | Spotted B-99 Colossus 7128 | -1/Access | Build established: Wizard-Sprinter 7274 | -1/Access | Entered Command 7314 | -1/Command | Disengaged cave seal 7314 | -1/Command | Derelicts emerged from the dark tunnel 7314 | -1/Command | Welcomed Warlord to Command 7500 | -1/Command | Spotted B-99 Colossus 7542 | -1/Command | P-80 Master assimilated allied 20-CX1(s) 7571 | -1/Command | Spotted M Guard 7575 | -1/Command | Spotted M Guard 7575 | -1/Command | Spotted Combat Programmer 7581 | -1/Command | Warlord commented on Warlord statues 7615 | -1/Command | Combat Programmer assimilated allied Q9-TK8(i) 7625 | -1/Command | Spotted Combat Programmer 7646 | -1/Command | Met MAIN.C 7647 | -1/Command | Lost 7 allies 7649 | -1/Command | 0b10 Conduit disabled 7684 | -1/Command | Lost 4 parts (3n1w) 7780 | -1/Command | Warlord shut down involuntarily 7796 | -1/Command | Lost 6 parts (1p3n2w) 7930 | -1/Command | System corruption reached 10% 8020 | -1/Command | Destroyed M Guard 8020 | -1/Command | All MAIN.C guards destroyed 8045 | -1/Command | Build established: Wizard-Mutant 8141 | -1/Command | Lost 3 allies 8145 | -1/Command | System corruption reached 30% 8189 | -1/Command | Core integrity fell below 50% 8222 | -1/Command | Lost 12 parts (6n3u3w) 8295 | -1/Command | Core integrity fell below 20% 8332 | -1/Command | Destroyed by MAIN.C with Heavy Quantum Rifle Last Messages --------------- Acquired KE Penetrator. Acquired Corrupted Power Maul. Integrated Corrupted Power Maul (+6). System corrupted: Matter fused (-9). Acquired 19 matter. System corrupted: Heat flow error (+176). Slug penetrates MAIN.C. System corrupted: Power Maul rejected. Acquired Power Maul. MAIN.C suffers critical hit (Smash). Destroyed Prototype Energy Cannon. Hacking Suite destroyed. System corrupted: Component data lost. KE Penetrator destroyed. Adv. Visual Processing Unit destroyed. Destroyed Prototype Storage. N941YCKOKM>/6EDVQ H3U4WFE#KOHYZ3|W/